Workbook

Sheet Cover
H3: =Input!A1 -> Version 1.1: EK-121001-Gen4
F25: =Language!D12 -> Language choice
D26: = 1 | F26: 2
D28: = 2
D30: = 3
D32: = 4
D34: = 5
D36: = 6

Sheet Input
A1: Version 1.1: EK-121001-Gen4
C4: =Language!D13 -> !!! Please enter only one pressure value !!!
C5: =Language!D6 -> Compressor discharge pressure | F5: =Language!D7 -> Minimum inlet pressure
C6: 7.5 | F6: =C6-0.5 -> 7
C7: =IF('Be-Um-rechnung'!$A$20=1,IF('Be-Um-rechnung'!$A$20=2,Language!$D$31,IF(Input!C6<4.5,Language!$D$31,IF(Input!C6>10.5,Language!$D$31," "))),IF(Input!C6<65,Language!$D$31,IF(Input!C6>152,Language!$D$31," "))) ->  | F7: =IF('Be-Um-rechnung'!$A$20=1,IF('Be-Um-rechnung'!$A$20=2,Language!$D$33,IF(Input!F6<4,Language!$D$33,IF(Input!F6>10,Language!$D$33," "))),IF(Input!F6<58,Language!$D$33,IF(Input!F6>145,Language!$D$33," "))) -> 
A15: =Language!D5 -> Compressed air flow rate at 20°C and 1 bar a
A16: 1000
A17: =IF('Be-Um-rechnung'!C9>Stoffdaten!O29,Language!D11," ") -> 
F25: =Language!D8 -> Maximum inlet temperature | I25: =Language!D9 -> Outlet pressure dewpoint
B26: =Language!D4 -> Ambient temperature | F26: 35 | I26: -70°C
B27: 25 | F27: =IF('Be-Um-rechnung'!$A$14=1,IF('Be-Um-rechnung'!$A$14=2,Language!$D$10,IF(Input!F26<25,Language!$D$10,IF(Input!F26>40,Language!$D$10," "))),IF(Input!F26<77,Language!$D$10,IF(Input!F26>104,Language!$D$10," "))) ->  | I27: =IF('Be-Um-rechnung'!J7=0,Language!D36,IF('Be-Um-rechnung'!J6=0,Language!D11," ")) -> 
B28: =IF('Be-Um-rechnung'!$A$47=1,IF('Be-Um-rechnung'!$A$47=2,Language!$D$32,IF(Input!B27<1.5,Language!$D$32,IF(Input!B27>40,Language!$D$32," "))),IF(Input!B27<35,Language!$D$32,IF(Input!B27>104,Language!$D$32," "))) ->  | H28: ='Be-Um-rechnung'!J10 -> 1005 | I28: ='Be-Um-rechnung'!J10 -> 1005 | J28: ='Be-Um-rechnung'!J10 -> 1005
B29: =IF('Be-Um-rechnung'!$A$47=1,IF('Be-Um-rechnung'!$A$47=2,Language!$D$40,IF(Input!B27<15,Language!$D$40," ")),IF(Input!B27<59,Language!$D$40," ")) ->  | H29: ='Be-Um-rechnung'!J10 -> 1005 | I29: ='Be-Um-rechnung'!J10 -> 1005 | J29: ='Be-Um-rechnung'!J10 -> 1005
B30: & | H30: ='Be-Um-rechnung'!J10 -> 1005 | I30: ='Be-Um-rechnung'!J10 -> 1005 | J30: ='Be-Um-rechnung'!J10 -> 1005
B31: =Language!D39 -> Relative humidity
A32: max. | B32: ='Be-Um-rechnung'!I50 -> 70 | C32: % | G32: =Language!D34 -> Out of standard range! Check the inputs!
B33: =IF(B32>'Be-Um-rechnung'!I50,Language!D41," ") ->  | G33: =Language!D11 -> Dryer must be sized by Parker!
G34: =Language!D35 -> Inputs are OK! GO!

Sheet Output
A1: =Language!D14 -> Dryer in accordance with standard specification
A3: WVM | B3: =IF(C5=ArtikelNr.!B3,Stoffdaten!P2,"#NV") -> 120 | C3: =Language!D17 -> With dew-point dependant-switching (variable cycle) | D3: =Language!D18 -> with insulation
A5: =Language!D20 -> Order Number/Catalogue Number | C5: =IF(OR('Be-Um-rechnung'!C4<=Stoffdaten!Z2,'Be-Um-rechnung'!J6=0),ArtikelNr.!B3, Language!D11) -> W120/10VM4-F400CT | D5: =IF(AND('Be-Um-rechnung'!C4<=Stoffdaten!Z2,'Be-Um-rechnung'!J6=1),ArtikelNr.!C3,Language!D11) -> W120/10VM4-F400CT/I
A7: =Language!D5 -> Compressed air flow rate at 20°C and 1 bar a | C7: ='Be-Um-rechnung'!B29 -> 1000 | D7: ='Be-Um-rechnung'!B29 -> 1000 | E7: ='Be-Um-rechnung'!C29 -> m³/h
A8: =Input!F5 -> Minimum inlet pressure | C8: ='Be-Um-rechnung'!B20 -> 7 | D8: ='Be-Um-rechnung'!B20 -> 7 | E8: ='Be-Um-rechnung'!C20 -> bar g
A9: =Input!F25 -> Maximum inlet temperature | C9: ='Be-Um-rechnung'!B14 -> 35 | D9: ='Be-Um-rechnung'!B14 -> 35 | E9: ='Be-Um-rechnung'!C14 -> °C
A10: =Language!D39 -> Relative humidity | C10: 100 | D10: 100 | E10: %
A11: =Input!I25 -> Outlet pressure dewpoint | C11: ='Be-Um-rechnung'!B39 -> -25 | D11: ='Be-Um-rechnung'!B39 -> -25 | E11: ='Be-Um-rechnung'!D39 -> °C
A12: =Language!D42 -> Outlet temperature app. | C12: ='Be-Um-rechnung'!B53 -> 48.02406646 | E12: ='Be-Um-rechnung'!C14 -> °C
A14: =Language!D19 & " (1*)" -> volume flow rate of blower (1*) | C14: =Stoffdaten!T2 -> 300 | E14: ='Be-Um-rechnung'!C29 -> m³/h
A15: =Language!D4 -> Ambient temperature | C15: ='Be-Um-rechnung'!F47 -> 25 | E15: ='Be-Um-rechnung'!C47 -> °C
A16: =Language!D39 -> Relative humidity | C16: ='Be-Um-rechnung'!I50 -> 70 | E16: %
A18: =Language!D21 & " (2*)" -> power (2*) | C18: =Stoffdaten!S2 -> 8 | E18: kWh/h
A19: =Language!D22 -> installed power | C19: =Stoffdaten!U2+Stoffdaten!V2+0.2 -> 13.4 | E19: kW
A20: =Language!D45 -> nominal current : heater | C20: =Stoffdaten!Q2 -> 15.9 | E20: A
A21: =Language!D46 -> nominal current : vacuum pump | C21: =Stoffdaten!R2 -> 5.8 | E21: =E20 -> A
A23: =Language!D26 -> Dimensions (AxBxC) (Width) x (Height) x (Depth) | C23: =IF('Be-Um-rechnung'!C4<=Stoffdaten!Z2,Stoffdaten!W2, "#NV") -> 1460 x 2690 x 1160 | E23: mm
A24: =Language!D25 -> Weight | C24: =IF('Be-Um-rechnung'!C4<=Stoffdaten!Z2,Stoffdaten!X2, "#NV") -> 1150 | E24: kg
A25: =Language!D24 -> Standard connections (EN 1092-1) | C25: =IF('Be-Um-rechnung'!C4<=Stoffdaten!Z2,"DN"&Stoffdaten!Y2&" PN16", "#NV") -> DN80 PN16 | E25: =Language!D29 & " (3*) " -> Alternatives possible (3*)
A27: =Language!D27 -> Standard Voltage | C27: 400 VAC, 50-60 Hz | E27: =Language!D29 & " (3*) " -> Alternatives possible (3*)
A28: =Language!D28 -> IP - Protection classification | C28: IP 54
A32: (1*) | B32: =Language!D43 -> Air flow rate (for the regeneration) at 100 mbar pressure drop.
A33: (2*) | B33: =Language!D44 -> Power on average
A34: (3*) | B34: =Language!D30 -> Please consult Parker!

Sheet Stoffdaten (hidden)
C1: W-Verweis | E1: S-Verweis | G1: Korrekturfaktor | O1: V in m³/h | P1: =P8 -> TYP WVM | Q1: Nennstrom Erhitzer | R1: Nennstrom Gebläse | S1: mittlere Gesamtleistung | T1: Leistungsdaten Vakuumpumpe m³/h | U1: mittl.Vakuumpumpenleistung [kW] | V1: mittl.Erhitzerleistung [kW] | AC1: Erwärmung [°C]
B2: PDP=-25°C | C2: =HLOOKUP('Be-Um-rechnung'!C5,C13:F14,2) -> 3 | E2: =VLOOKUP('Be-Um-rechnung'!C4,Stoffdaten!B15:F21,C2+1) -> 1 | G2: =IF('Be-Um-rechnung'!C6<-41,Stoffdaten!E3*Stoffdaten!A27,Stoffdaten!E3) -> 1 | O2: =VLOOKUP(P2,$N$10:P33,2) -> 1180 | P2: =VLOOKUP('Be-Um-rechnung'!C9,$O$9:P33,2) -> 120 | Q2: =VLOOKUP(P2,N9:T29,4) -> 15.9 | R2: =VLOOKUP(P2,N9:T29,5) -> 5.8 | S2: =VLOOKUP(P2,N9:T29,6) -> 8 | T2: =VLOOKUP(P2,N9:T29,7) -> 300 | U2: =VLOOKUP(P2,N9:U29,8) -> 2.2 | V2: =VLOOKUP(P2,N9:V29,9) -> 11 | W2: =VLOOKUP(P2,N9:W29,10) -> 1460 x 2690 x 1160 | X2: =VLOOKUP(P2,N9:X29,11) -> 1150 | Y2: =VLOOKUP(P2,N9:Y29,12) -> 80 | Z2: =VLOOKUP(P2,N9:Z29,13) -> 10 | AC2: =(AD7*2.2)/('Be-Um-rechnung'!C4+1) -> 13.02406646
E3: =IF(ISNA(E2),0,E2) -> 1
B4: PDP=-40°C | C4: =HLOOKUP('Be-Um-rechnung'!C5,I13:L14,2) -> 3 | E4: =VLOOKUP('Be-Um-rechnung'!C4,Stoffdaten!H15:L21,C2+1) -> 0.9 | G4: =IF('Be-Um-rechnung'!C6<-41,Stoffdaten!E5*Stoffdaten!A27,Stoffdaten!E5) -> 0.9
E5: =IF(ISNA(E4),0,E4) -> 0.9 | AC5: g | AD5: g1 | AE5: g2
AC6: g/m³
AC7: =EXP(11.77-3881/(230+'Be-Um-rechnung'!$C$5)) -> 0.05640017493 | AD7: =AC7*8.03526*100/(1.0133-AC7) -> 47.36024166 | AE7: =AC7*2165*100/('Be-Um-rechnung'!$C$5+273.15) -> 39.62562996
N8: Größe | O8: V_max in m³/h | P8: TYP WVM | Q8: Nennstrom Erhitzer | R8: Nennstrom Gebläse | S8: mittlere Gesamtleistung | T8: Leistungsdaten Vakuumpumpe m³/h | U8: mittl.Vakuumpumpenleistung [kW] | V8: mittl.Erhitzerleistung [kW] | W8: Dimensionen (AxBxC) [mm] | X8: Gewicht [kg] | Y8: Anschluß | Z8: maximaler Druck [bar]
N9: 0 | O9: 0 | P9: 40
C10: Trockner-Eintrittstemperatur in °F | H10: Trockner-Eintrittstemperatur in °F | N10: 40 | O10: 420.0000001 | P10: 50 | Q10: 6.5 | R10: 2.4 | S10: 3 | T10: 125 | U10: 0.85 | V10: 4.5 | W10: 1140 x 2230 x 990 | X10: 570 | Y10: 40 | Z10: 10
A11: Für einen Drucktaupunkt | C11: =C13*1.8+32 -> 77 | D11: 86 | E11: =E13*1.8+32 -> 95 | F11: =F13*1.8+32 -> 104 | G11: Für einen Drucktaupunkt | I11: =I13*1.8+32 -> 77 | J11: =J13*1.8+32 -> 86 | K11: =K13*1.8+32 -> 95 | L11: =L13*1.8+32 -> 104 | N11: 50 | O11: 510.0000001 | P11: 65 | Q11: 6.5 | R11: 2.4 | S11: 4 | T11: 125 | U11: 0.85 | V11: 4.5 | W11: 1140 x 2230 x 990 | X11: 600 | Y11: 40 | Z11: 10
A12: von -25 °C | C12: Trockner-Eintrittstemperatur in °C | G12: von -40 °C | H12: Trockner-Eintrittstemperatur in °C | N12: 65 | O12: 640.0000001 | P12: 85 | Q12: 11.6 | R12: 4.9 | S12: 5 | T12: 210 | U12: 1.5 | V12: 8 | W12: 1260 x 2300 x 1110 | X12: 770 | Y12: 50 | Z12: 10
A13: Mindest-Betriebsdruck | C13: 25 | D13: 30 | E13: 35 | F13: 40 | G13: Mindest-Betriebsdruck | I13: 25 | J13: 30 | K13: 35 | L13: 40 | N13: 85 | O13: 850.0000001 | P13: 120 | Q13: 11.6 | R13: 4.9 | S13: 7 | T13: 210 | U13: 1.5 | V13: 8 | W13: 1260 x 2300 x 1110 | X13: 800 | Y13: 50 | Z13: 10
A14: in bar (e) oder (g) | C14: 1 | D14: 2 | E14: 3 | F14: 4 | G14: in bar (e) oder (g) | I14: 1 | J14: 2 | K14: 3 | L14: 4 | N14: 120 | O14: 1180 | P14: 150 | Q14: 15.9 | R14: 5.8 | S14: 8 | T14: 300 | U14: 2.2 | V14: 11 | W14: 1460 x 2690 x 1160 | X14: 1150 | Y14: 80 | Z14: 10
B15: 4 | C15: 0.69 | D15: 0.69 | E15: 0.44 | F15: 0.28 | H15: 4 | I15: 0.66 | J15: 0.66 | K15: 0.4 | L15: 0.26 | N15: 150 | O15: 1500 | P15: 200 | Q15: 20.2 | R15: 9.5 | S15: 11 | T15: 375 | U15: 4 | V15: 14 | W15: 1540 x 2700 x 1200 | X15: 1300 | Y15: 80 | Z15: 10
B16: 5 | C16: 0.8 | D16: 0.8 | E16: 0.62 | F16: 0.42 | H16: 5 | I16: 0.76 | J16: 0.76 | K16: 0.58 | L16: 0.38 | N16: 200 | O16: 1980 | P16: 235 | Q16: 26 | R16: 12.9 | S16: 12 | T16: 550 | U16: 5.5 | V16: 18 | W16: 1605 x 2750 x 1405 | X16: 1650 | Y16: 80 | Z16: 10
B17: 6 | C17: 0.9 | D17: 0.9 | E17: 0.8 | F17: 0.59 | H17: 6 | I17: 0.87 | J17: 0.87 | K17: 0.77 | L17: 0.56 | N17: 235 | O17: 2350 | P17: 300 | Q17: 40.4 | R17: 18.2 | S17: 16 | T17: 750 | U17: 8.5 | V17: 28 | W17: 2025 x 2870 x 1490 | X17: 2000 | Y17: 100 | Z17: 10
B18: 7 | C18: 1.02 | D18: 1.02 | E18: 1 | F18: 0.7 | H18: 7 | I18: 0.93 | J18: 0.93 | K18: 0.9 | L18: 0.68 | N18: 300 | O18: 2930 | P18: 355 | Q18: 40.4 | R18: 18.2 | S18: 20 | T18: 750 | U18: 8.5 | V18: 28 | W18: 2050 x 2890 x 1565 | X18: 2250 | Y18: 100 | Z18: 10
B19: 8 | C19: 1.06 | D19: 1.06 | E19: 1.05 | F19: 0.79 | H19: 8 | I19: 0.98 | J19: 0.98 | K19: 0.95 | L19: 0.72 | N19: 355 | O19: 3550 | P19: 410 | Q19: 50.5 | R19: 18.2 | S19: 24 | T19: 900 | U19: 8.5 | V19: 35 | W19: 2160 x 2960 x 1750 | X19: 2650 | Y19: 100 | Z19: 10
B20: 9 | C20: 1.17 | D20: 1.17 | E20: 1.16 | F20: 0.88 | H20: 9 | I20: 1.04 | J20: 1.04 | K20: 1.03 | L20: 0.76 | N20: 410 | O20: 4100 | P20: 475 | Q20: 50.5 | R20: 18.2 | S20: 28 | T20: 900 | U20: 8.5 | V20: 35 | W20: 2430 x 3230 x 1710 | X20: 3250 | Y20: 150 | Z20: 10
B21: 10 | C21: 1.29 | D21: 1.29 | E21: 1.28 | F21: 0.96 | H21: 10 | I21: 1.11 | J21: 1.11 | K21: 1.11 | L21: 0.85 | N21: 475 | O21: 4740 | P21: 525 | Q21: 57.8 | R21: 18.2 | S21: 30 | T21: 1150 | U21: 8.5 | V21: 40 | W21: 2490 x 3260 x 1710 | X21: 3650 | Y21: 150 | Z21: 10
N22: 525 | O22: 5250 | P22: 620 | Q22: 69.3 | R22: 35 | S22: 32 | T22: 1460 | U22: 15 | V22: 48 | W22: 2550 x 3265 x 1775 | X22: 4050 | Y22: 150 | Z22: 10
N23: 620 | O23: 6210 | P23: 710 | Q23: 83.7 | R23: 35 | S23: 44 | T23: 1460 | U23: 15 | V23: 58 | W23: 2570 x 3540 x 1865 | X23: 4700 | Y23: 150 | Z23: 10
N24: 710 | O24: 7100 | P24: 800 | Q24: 99.7 | R24: 35 | S24: 47 | T24: 1800 | U24: 15 | V24: 69 | W24: 2635 x 3560 x 1900 | X24: 5050 | Y24: 150 | Z24: 10
N25: 800 | O25: 8000 | P25: 920 | Q25: 106.8 | R25: 35 | S25: 56 | T25: 1900 | U25: 15 | V25: 74 | W25: 3085 x 3625 x 2110 | X25: 6450 | Y25: 200 | Z25: 10
A26: Für einen Drucktaupunkt von -70 °C (bei max. 35 °C Eintrittstemperatur, 100 % relative Feuchte, gasdichter Verrohrung) | N26: 920 | O26: 9200 | P26: 1080 | Q26: 121.2 | R26: 53 | S26: 63 | T26: 2190 | U26: 30 | V26: 84 | W26: 3125 x 3645 x 2235 | X26: 7500 | Y26: 200 | Z26: 10
A27: 1 | N27: 1080 | O27: 10800 | P27: 1230 | Q27: 137.1 | R27: 53 | S27: 72 | T27: 2480 | U27: 30 | V27: 95 | W27: 3225 x 3710 x 2285 | X27: 8700 | Y27: 200 | Z27: 10
N28: 1230 | O28: 12300 | P28: 1450 | Q28: 164.5 | R28: 65 | S28: 84 | T28: 2920 | U28: 37 | V28: 114 | W28: 3475 x 4050 x 2350 | X28: 11500 | Y28: 250 | Z28: 10
N29: 1450 | O29: 14500 | Q29: 194.9 | R29: 65 | S29: 98 | T29: 3440 | U29: 37 | V29: 135 | W29: 3500 x 4200 x 2380 | X29: 13500 | Y29: 250 | Z29: 10

Sheet ArtikelNr. (hidden)
A1: 1 | B1: 2 | C1: 3 | D1: 4
B2: Trockner-BestellNr. | C2: Trockner-BestellNr.
A3: =VLOOKUP(Stoffdaten!P2,ArtikelNr.!A4:G19,1) -> 120 | B3: =VLOOKUP(Stoffdaten!P2,ArtikelNr.!A4:G27,2) -> W120/10VM4-F400CT | C3: =VLOOKUP(Stoffdaten!P2,ArtikelNr.!A4:G27,3) -> W120/10VM4-F400CT/I | D3: =VLOOKUP(Stoffdaten!P2,ArtikelNr.!A4:G27,4) -> 0
A4: 40 | B4: W40/10VM4-F400CT | C4: W40/10VM4-F400CT/I
A5: 50 | B5: W50/10VM4-F400CT | C5: W50/10VM4-F400CT/I
A6: 65 | B6: W65/10VM4-F400CT | C6: W65/10VM4-F400CT/I
A7: 85 | B7: W85/10VM4-F400CT | C7: W85/10VM4-F400CT/I
A8: 120 | B8: W120/10VM4-F400CT | C8: W120/10VM4-F400CT/I
A9: 150 | B9: W150/10VM4-F400CT | C9: W150/10VM4-F400CT/I
A10: 200 | B10: W200/10VM4-F400CT | C10: W200/10VM4-F400CT/I
A11: 235 | B11: W235/10VM4-F400CT | C11: W235/10VM4-F400CT/I
A12: 300 | B12: W300/10VM4-F400CT | C12: W300/10VM4-F400CT/I
A13: 355 | B13: W355/10VM4-F400CT | C13: W355/10VM4-F400CT/I
A14: 410 | B14: W410/10VM4-F400CT | C14: W410/10VM4-F400CT/I
A15: 475 | B15: W475/10VM4-F400CT | C15: W475/10VM4-F400CT/I
A16: 525 | B16: W525/10VM4-F400CT | C16: W525/10VM4-F400CT/I
A17: 620 | B17: W620/10VM4-F400CT | C17: W620/10VM4-F400CT/I
A18: 710 | B18: W710/10VM4-F400CT | C18: W710/10VM4-F400CT/I
A19: 800 | B19: W800/10VM4-F400CT | C19: W800/10VM4-F400CT/I
A20: 920 | B20: W920/10VM4-F400CT | C20: W920/10VM4-F400CT/I
A21: 1080 | B21: W1080/10VM4-F400CT | C21: W1080/10VM4-F400CT/I
A22: 1230 | B22: W1230/10VM4-F400CT | C22: W1230/10VM4-F400CT/I
A23: 1450 | B23: W1450/10VM4-F400CT | C23: W1450/10VM4-F400CT/I

Sheet Language (hidden)
D2: =Cover!F26 -> 2 | E2: Deutsch | F2: English | G2: Français | H2: Italiano | I2: Español | J2: Polish | K2: … | L2: … | M2: …
C3: 1 | D3: Auswahl | E3: 1 | F3: 2 | G3: 3 | H3: 4 | I3: 5 | J3: 6 | K3: 7 | L3: 8 | M3: 9
C4: =C3+1 -> 2 | D4: =HLOOKUP($D$2,Language!$E$3:M50,C4) -> Ambient temperature | E4: Umgebungstemperatur | F4: Ambient temperature | G4: Temp Ambiante | H4: Temperatura ambiente | I4: Temperatura ambiente | J4: Temperatura otoczenia
C5: =C4+1 -> 3 | D5: =HLOOKUP($D$2,Language!$E$3:M51,C5) -> Compressed air flow rate at 20°C and 1 bar a | E5: Volumenstrom bezogen auf 20°C und 1 bar a | F5: Compressed air flow rate at 20°C and 1 bar a | G5: Débit air comprimé à 20°C et 1 bar abs | H5: Portata riferita a 20°C e 1 bar ass. | I5: Caudal de aire comprimido a 20°C y 1 bar de presión absoluta | J5: Strumień sprężonego powietrza odniesiony do 20°C i 1 bar a
C6: =C5+1 -> 4 | D6: =HLOOKUP($D$2,Language!$E$3:M52,C6) -> Compressor discharge pressure | E6: Minimaler Betriebsdruck | F6: Compressor discharge pressure | G6: Pression sortie compresseur | H6: Minima pressione di esercizio | I6: Presión de descarga del compresor | J6: Minimalne ciśnienie robocze
C7: =C6+1 -> 5 | D7: =HLOOKUP($D$2,Language!$E$3:M53,C7) -> Minimum inlet pressure | E7: Minimaler Eintrittsdruck | F7: Minimum inlet pressure | G7: Pression entrée mini | H7: Minima pressione in ingresso | I7: Presión mínima de entrada | J7: Minimalne ciśnienie na wlocie
C8: 6 | D8: =HLOOKUP($D$2,Language!$E$3:M54,C8) -> Maximum inlet temperature | E8: Maximale Eintrittstemperatur | F8: Maximum inlet temperature | G8: T°C entrée maxi | H8: Massima temperatura in ingresso | I8: Temperatura máxima de entrada | J8: Maksymalne ciśnienie na wlocie
C9: =C8+1 -> 7 | D9: =HLOOKUP($D$2,Language!$E$3:M55,C9) -> Outlet pressure dewpoint | E9: Drucktaupunkt | F9: Outlet pressure dewpoint | G9: PDR sous pression requis | H9: Punto di rugiada in pressione | I9: Salida punto de rocío a presión | J9: Ciśnieniowy punkt rosy
C10: =C9+1 -> 8 | D10: =HLOOKUP($D$2,Language!$E$3:M56,C10) -> Out of range! Use 25 - 40°C or 77 - 104°F | E10: Außerhalb des Bereiches von 25 - 40°C oder 77 - 104°F | F10: Out of range! Use 25 - 40°C or 77 - 104°F | G10: Hors Standard ! Choisir dans la plage 25 - 40°C ou 77 - 104°F | H10: Fuori range ! Selez. da 25 - 50 °C oppure 77 - 122 °F | I10: Fuera de rango ! Usar 25 - 40°C o 77 - 104 °F | J10: Poza zakresem! Wybierz od 25 do 40°C lub 77 - 104 °F
C11: =C10+1 -> 9 | D11: =HLOOKUP($D$2,Language!$E$3:M57,C11) -> Dryer must be sized by Parker! | E11: Trockner im Werk anfragen! | F11: Dryer must be sized by Parker! | G11: Le sécheur doit être déterminé par Parker! | H11: Selezione dell'essiccatore a cura Parker! | I11: El secador debe ser dimensionado por Parker! | J11: Osuszacz musi być dobrany fabrycznie!
C12: 10 | D12: =HLOOKUP($D$2,Language!$E$3:M58,C12) -> Language choice | E12: Sprachauswahl | F12: Language choice | G12: Choix du langage | H12: Scelta della lingua | I12: Selección de idioma | J12: Wybór języka
C13: 11 | D13: =HLOOKUP($D$2,Language!$E$3:M59,C13) -> !!! Please enter only one pressure value !!! | E13: !!! Bitte nur einen Druckwert eingeben !!! | F13: !!! Please enter only one pressure value !!! | G13: !!! Merci de n'entrer qu'une seule valeur de pression !!! | H13: !!! Inserire solo un valore di pressione !!! | I13: !!! Por favor introduzca un único valor de presión !!! | J13: !!! Proszę wprowadzić tylko jedną wartość ciśnienia !!!
C14: 12 | D14: =HLOOKUP($D$2,Language!$E$3:M60,C14) -> Dryer in accordance with standard specification | E14: Trockner in der Standard Ausführung | F14: Dryer in accordance with standard specification | G14: Sécheur conforme aux spécifications standards | H14: Essiccatore in accordo a specifiche standard | I14: Secador conforme a la especificación standard | J14: Osuszacz w standardowym wykonaniu
C15: 13 | D15: =HLOOKUP($D$2,Language!$E$3:M61,C15) -> Dryer choice with input data | E15: Trocknerwahl mit Ihren Eingabedaten | F15: Dryer choice with input data | G15: Sélection Sécheur en fonction des données d'entrée | H15: Scelta essiccatore sulla base dei dati cliente | I15: Elección del secador con los datos de entrada | J15: Dobór osuszacza według podanych wartości wejściowych
C16: 14 | D16: =HLOOKUP($D$2,Language!$E$3:M62,C16) -> Standard orifice Ø | E16: Ø Blende im Standard | F16: Standard orifice Ø | G16: Ø orifice standard | H16: Orifizio calibrato standard | I16: Orificio standard Ø | J16: Otwór standardowy Ø
C17: 15 | D17: =HLOOKUP($D$2,Language!$E$3:M63,C17) -> With dew-point dependant-switching (variable cycle) | E17: mit Taupunkt-Steuerung ZHM 100 (variabler Zyklus) | F17: With dew-point dependant-switching (variable cycle) | G17: Cycles variables (dépendants du PDR) | H17: Con controllo punto di rugiada (cicli variabili) | I17: Con control por punto de rocío (Ciclo variable) | J17: Ze sterowaniem zwrotnym od punktu rosy
C18: 16 | D18: =HLOOKUP($D$2,Language!$E$3:M64,C18) -> with insulation | E18: mit Isolierung | F18: with insulation | G18: avec calorifuge | H18: con isolamento | I18: =F18 -> with insulation | J18: z izolacją
C19: 17 | D19: =HLOOKUP($D$2,Language!$E$3:M65,C19) -> volume flow rate of blower | E19: Fördermenge Vakuumpumpe | F19: volume flow rate of blower | G19: débit de la pompe à vide | H19: portata volumetrica della soffiante | I19: =F19 -> volume flow rate of blower | J19: strumień powietrza pompy prózniowej
C20: 18 | D20: =HLOOKUP($D$2,Language!$E$3:M66,C20) -> Order Number/Catalogue Number | E20: Bestellnummer/Katalognummer | F20: Order Number/Catalogue Number | G20: Réf catalogue | H20: Numero ordine/Numero catalogo | I20: Número de pedido/Número de catálogo | J20: Numer zamówieniowy / Numer katalogowy
C21: 19 | D21: =HLOOKUP($D$2,Language!$E$3:M67,C21) -> power | E21: mittlere Gesamtleistung | F21: power | G21: Puissance | H21: potenza | I21: =F21 -> power | J21: zużycie energii
C22: 20 | D22: =HLOOKUP($D$2,Language!$E$3:M68,C22) -> installed power | E22: installierte Leistung | F22: installed power | G22: Puissance installée | H22: potenza installata | I22: =F22 -> installed power | J22: moc zainstalowana
C23: 21 | D23: =HLOOKUP($D$2,Language!$E$3:M69,C23) -> In addition, please order | E23: Bestellen Sie dazu | F23: In addition, please order | G23: Ne pas oublier de commander | H23: Prego ordinare in aggiunta | I23: Además, por favor pedir | J23: Dodatkowo proszę zamówić
C24: 22 | D24: =HLOOKUP($D$2,Language!$E$3:M70,C24) -> Standard connections (EN 1092-1) | E24: Anschluß im Standard (EN 1092-1) | F24: Standard connections (EN 1092-1) | G24: Raccordements standards (EN 1092-1) | H24: Connessione standard (EN 1092-1) | I24: Conexiones standard (EN 1092-1) | J24: Standardowe przyłącze (EN 1092-1)
C25: 23 | D25: =HLOOKUP($D$2,Language!$E$3:M71,C25) -> Weight | E25: Gewicht | F25: Weight | G25: Poids | H25: Peso | I25: Peso | J25: Waga
C26: 24 | D26: =HLOOKUP($D$2,Language!$E$3:M72,C26) -> Dimensions (AxBxC) (Width) x (Height) x (Depth) | E26: Dimensionen (AxBxC) (Breite)x(Höhe)x(Tiefe) | F26: Dimensions (AxBxC) (Width) x (Height) x (Depth) | G26: Dimensions (AxBxC) (Large) x (Haut) x (Prof) | H26: Dimensioni (AxBxC) (Larghezza)x(altezza)x(profondità) | I26: Dimensiones (AxBxC) (Ancho) x (altura) x (Profundidad) | J26: Wymiary (AxBxC) (szerokość) x (wysokość) x (głębokość)
C27: 25 | D27: =HLOOKUP($D$2,Language!$E$3:M73,C27) -> Standard Voltage | E27: Netzspannung im Standard | F27: Standard Voltage | G27: Voltage Standard | H27: Tensione standard | I27: Tensión standard | J27: Standardowe napięcie zasilające
C28: 26 | D28: =HLOOKUP($D$2,Language!$E$3:M74,C28) -> IP - Protection classification | E28: Schutzklasse | F28: IP - Protection classification | G28: Classe IP Protection | H28: Classe di protezione IP | I28: Clasificación de la protección IP | J28: Stopień ochrony IP
C29: 27 | D29: =HLOOKUP($D$2,Language!$E$3:M75,C29) -> Alternatives possible | E29: Altenativen möglich | F29: Alternatives possible | G29: Variantes possibles | H29: Possibili alternative | I29: Alternativas posibles | J29: Alternatywnie możliwe
C30: 28 | D30: =HLOOKUP($D$2,Language!$E$3:M76,C30) -> Please consult Parker! | E30: Im Werk anfragen! | F30: Please consult Parker! | G30: Merci de bien vouloir consulter Parker! | H30: Prego consultare la Parker! | I30: Por favor consultar a Parker! | J30: Prosimy o kontakt z Parkerem!
C31: 29 | D31: =HLOOKUP($D$2,Language!$E$3:M77,C31) -> Out of range! Use 4,5 - 10,5 bar g or 65 - 152 psi g | E31: Außerhalb des Bereiches von 4,5 - 10,5 bar g oder 65 - 152 psi g | F31: Out of range! Use 4,5 - 10,5 bar g or 65 - 152 psi g | G31: Hors Standard ! Choisir dans la plage 4,5 - 10,5 bar eff ou 65 - 152 psi g | H31: Fuori range ! Selez. da 4,5 - 10,5 barg oppure 65 - 152 psi g | I31: Fuera de rango! Usar 4,5 - 10,5 barg o 65 - 152 psi g | J31: Poza zakresem! Wybierz od 4,5 d0 10,5 barg lub 65 d 152 psi g
C32: 30 | D32: =HLOOKUP($D$2,Language!$E$3:M78,C32) -> Out of range! Use 1,5 - 40°C or 77 - 104°F | E32: Außerhalb des Bereiches von 1,5 - 40°C oder 77 - 104°F | F32: Out of range! Use 1,5 - 40°C or 77 - 104°F | G32: Hors Standard ! Choisir dans la plage 1,5 - 40°C ou 77 - 104°F | H32: Fuori range ! Selez. da 1,5 - 40 °C oppure 77 - 104 °F | I32: Fuera de rango! Usar 1,5 - 40°C o 77 - 104 °F | J32: Poza zakresem! Wybierz od 1,5 do 40°C lub 77 - 104 °F
C33: 31 | D33: =HLOOKUP($D$2,Language!$E$3:M79,C33) -> Out of range! Use 5 - 15 bar g or 73 - 217 psi g | E33: Außerhalb des Bereiches von 5 - 15 bar g oder 73 - 217 psi g | F33: Out of range! Use 5 - 15 bar g or 73 - 217 psi g | G33: Hors Standard ! Choisir dans la plage 5 - 15 bar eff ou 73 - 217 psi g | H33: Fuori range ! Selez. da 5 - 15 barg oppure 73 - 217 psi g | I33: Fuera de rango! Usar 5 - 15 barg o 73 - 217 psi g | J33: Poza zakresem! Wybierz od 5 do 15 bar g lub 73 - 217 psi g
C34: 32 | D34: =HLOOKUP($D$2,Language!$E$3:M80,C34) -> Out of standard range! Check the inputs! | E34: Außerhalb des Standards! Eingabewerte kontrollieren! | F34: Out of standard range! Check the inputs! | G34: Hors Standard ! | H34: Fuori intervallo! | I34: Fuera de rango! | J34: Poza zakresem! Skontrolować parametry wprowadzone!
C35: 33 | D35: =HLOOKUP($D$2,Language!$E$3:M81,C35) -> Inputs are OK! GO! | E35: Eingabewerte sind korrekt! GO! | F35: Inputs are OK! GO! | G35: Les données sont correctes. Allons-y ! | H35: I dati sono OK! Vai avanti! | I35: =F35 -> Inputs are OK! GO! | J35: Parametry wprowadzone są poprawne. Idź dalej.
C36: 34 | D36: =HLOOKUP($D$2,Language!$E$3:M82,C36) -> No garantee for the dew point! Please reduce the inlet temperature! | E36: Taupunkt kann nicht garantiert werden! Eintrittstemperatur reduzieren! | F36: No garantee for the dew point! Please reduce the inlet temperature! | G36: Aucune garantie pour le PdR. Réduire la T°C d'entrée | H36: Il punto di rugiada non è garantito! Ridurre la temperatura d'ingresso! | I36: No garantee for the dew point! Please reduce the inlet temperature! | J36: Punkt rosy nie może być gwarantowany. Obniż temperaturę wlotową.
C37: 35 | D37: =HLOOKUP($D$2,Language!$E$3:M83,C37) -> Alternatively ANSI B 1.20.1 (NPT-F). ??? | E37: Auch in ANSI B 1.20.1 (NPT-F) möglich. ??? | F37: Alternatively ANSI B 1.20.1 (NPT-F). ??? | G37: En option ANSI B 1.20.1 5 (NPT-F). | H37: In alternativa ANSI B 1.20.1 (NPT-F).??? | I37: Alternatively ANSI B 1.20.1 (NPT-F). ??? | J37: Również możliwe ANSI B 1.20.1 (NPT-F) ???
C38: 36 | D38: =HLOOKUP($D$2,Language!$E$3:M84,C38) -> Alternatively 115V and 24 VDC. ??? | E38: Auch mit 115V und 24 V DC möglich. ??? | F38: Alternatively 115V and 24 VDC. ??? | G38: En option 115V et 24 V-DC | H38: In alternativa 115V e 24VDC.??? | I38: Alternatively 115V and 24 VDC. ??? | J38: Również możliwe 115V i 24V DC ???
C39: 37 | D39: =HLOOKUP($D$2,Language!$E$3:M85,C39) -> Relative humidity | E39: Relative Feuchte | F39: Relative humidity | G39: Humidité Relative | H39: Umidità relativa | I39: Relative humidity | J39: Wilgotność względna
C40: 38 | D40: =HLOOKUP($D$2,Language!$E$3:M86,C40) -> Insulation is necessary! | E40: Isolierung des Trockners erforderlich! | F40: Insulation is necessary! | G40: Calorifugeage nécessaire | H40: E' necessario l'solamento | I40: Insulation is necessary! | J40: Izolacja jest konieczna!
C41: 39 | D41: =HLOOKUP($D$2,Language!$E$3:M87,C41) -> Relative humidity to high! | E41: Relative Feuchte zu hoch! | F41: Relative humidity to high! | G41: Humidité Relative trop importante | H41: Umidità relativa troppo alta! | I41: Relative humidity to high! | J41: Wilgotność względna za wysoka!
C42: 40 | D42: =HLOOKUP($D$2,Language!$E$3:M88,C42) -> Outlet temperature app. | E42: Austrittstemperatur ca. | F42: Outlet temperature app. | G42: Température de sortie | H42: Temperatura di uscita app. | I42: Outlet temperature app. | J42: Temperatura wylotowa przybliżona
C43: 41 | D43: =HLOOKUP($D$2,Language!$E$3:M89,C43) -> Air flow rate (for the regeneration) at 100 mbar pressure drop. | E43: Volumenstrom (Regenerationsluft) bezogen auf einen Differendruck von 100 mbar. | F43: Air flow rate (for the regeneration) at 100 mbar pressure drop. | G43: Débit d'air (pour la régénération) à 100 mbar de Delta P | H43: Portata (aria di rigenerazione) con 100 mbar di perdite di carico | I43: Air flow rate (for the regeneration) at 100 mbar pressure drop. | J43: Strumień powierza (powietrze na potrzeby regeneracji) przy założeniu 100 mbar różnicy ciśnień
C44: 42 | D44: =HLOOKUP($D$2,Language!$E$3:M90,C44) -> Power on average | E44: Gemittelter Energiebedarf bei Taupunktsteuerung zur Orientierung (auch abhängig von Aufstell- und Lastbedingungen). | F44: Power on average | G44: Puissance Moyenne | H44: Potenza media | I44: Power on average | J44: Uśrednione zużycie energii ze sterowaniem zwrotnym od punktu rosy, orientacyjne (zależy od ustawień i obciążenia).
C45: 43 | D45: =HLOOKUP($D$2,Language!$E$3:M91,C45) -> nominal current : heater | E45: Nennstrom : Erhitzer | F45: nominal current : heater | G45: Courant Nominal : résistance chauffante | H45: corrente nominale: riscaldatore | I45: nominal current : heater | J45: Prąd nominalny: grzałaka
C46: 44 | D46: =HLOOKUP($D$2,Language!$E$3:M92,C46) -> nominal current : vacuum pump | E46: Nennstrom : Gebläse | F46: nominal current : vacuum pump | G46: Courant Nominal : pompe à vide | H46: corrente nominale: pompa per vuoto | I46: nominal current : vacuum pump | J46: Prąd nominalny: pompa próżniowa
C47: 45 | D47: =HLOOKUP($D$2,Language!$E$3:M93,C47) -> 0
C48: 46 | D48: =HLOOKUP($D$2,Language!$E$3:M94,C48) -> 0
C49: 47 | D49: =HLOOKUP($D$2,Language!$E$3:M95,C49) -> 0
C50: 48 | D50: =HLOOKUP($D$2,Language!$E$3:M96,C50) -> 0

Sheet Be-Um-rechnung (hidden)
A1: Auslegungsprogramm K-MT 1-8, K-MT 10-95 und K-MT 120-600
A3: =Input!A15 -> Compressed air flow rate at 20°C and 1 bar a | C3: =H23 -> 1000 | D3: m³/h
A4: =Input!F5 -> Minimum inlet pressure | C4: =F20 -> 7 | D4: bar g | J4: =IF(OR(C4<4,C4>10),0,1) -> 1
A5: =Input!F25 -> Maximum inlet temperature | C5: =F14 -> 35 | D5: °C | J5: =IF(OR(C5<25,C5>40),0,1) -> 1
A6: =Input!I25 -> Outlet pressure dewpoint | C6: =L39 -> -25 | D6: °C | J6: =IF(C6=-70,0,1) -> 1
A7: Temperaturdifferenz | C7: =C5-C6 -> 60 | D7: °C | J7: =IF(C7>105,0,1) -> 1
A8: Korrekturfaktor K = | C8: =IF(C6=-25,Stoffdaten!G2,Stoffdaten!G4) -> 1 | D8: - | J8: =C8 -> 1
A9: Volumenstrom V_gerechnet = | C9: =IF(C8=0,-1,C3/C8) -> 1000 | D9: m³/h | J9: =C9 -> 1000
J10: =IF(AND(J4=1,J5=1,J7=1,J6=1),SUM(J4:J9),0) -> 1005 | K10: 0 = not OK | L10: >= 1 = OK
A11: Temperatur | C11: Einheit
A12: 1 | C12: °C
A13: 2 | C13: °F
A14: 1 | B14: =Input!F26 -> 35 | C14: =VLOOKUP(A14,A12:C13,3) -> °C | D14: =IF(A14=1,Input!F26,((Input!F26-32)*5/9)) -> 35 | E14: °C | F14: =IF(A14=1,ROUNDUP(Input!F26*2,-1)/2,(ROUNDUP(((Input!F26-32)*5/9)*2,-1)/2)) -> 35 | G14: °C
A17: Druck | C17: Einheit
A18: 1 | C18: bar g
A19: 2 | C19: psi g
A20: 1 | B20: =IF('Be-Um-rechnung'!A20=1,Input!C6-0.5,Input!C6-7) -> 7 | C20: =VLOOKUP(A20,A18:C19,3) -> bar g | F20: =IF(A20=1,Input!F6,(ROUND(Input!F6*0.06894757,1))) -> 7 | G20: bar g
H23: =SUM(H25:H28) -> 1000
A24: Volumenstrom | C24: Einheit | F24: =E25 -> L/sec | G24: =E26 -> m³/min | H24: =E27 -> m³/h | I24: =E28 -> cfm
A25: 1 | C25: L/sec | E25: L/sec | F25: =IF(A29=1,B29,"0") -> 0 | G25: - | H25: =F25*3600/1000 -> 0 | I25: -
A26: 2 | C26: m³/min | E26: m³/min | F26: - | G26: =IF(A29=2,B29,"0") -> 0 | H26: =G26*60 -> 0 | I26: -
A27: 3 | C27: m³/h | E27: m³/h | F27: - | G27: - | H27: =IF(A29=3,B29,"0") -> 1000 | I27: -
A28: 4 | C28: cfm | E28: cfm | F28: - | G28: - | H28: =I28*60/35.31467 -> 0 | I28: =IF(A29=4,B29,"0") -> 0
A29: 3 | B29: =Input!A16 -> 1000 | C29: =VLOOKUP(A29,A25:C28,3) -> m³/h
A32: DTP | C32: Einheit | F32: °C | G32: °C | H32: °C | I32: °C | J32: °C | K32: °C
A33: 1 | B33: -25 | C33: -25°C | E33: -25°C | F33: =IF(A39=1,-25,"0") -> -25
A34: 2 | B34: -40 | C34: -40°C | E34: -40°C | G34: =IF(A39=2,-40,"0") -> 0
A35: 3 | B35: -70 | C35: -70°C | E35: -70°C | H35: =IF(A39=3,-70,"0") -> 0
A36: 4 | B36: -13 | C36: -13°F | E36: -13°F | I36: =IF(A39=4,-25,"0") -> 0
A37: 5 | B37: -40 | C37: -40°F | E37: -40°F | J37: =IF(A39=5,-40,"0") -> 0
A38: 6 | B38: -94 | C38: -94°F | E38: -94°F | K38: =IF(A39=6,-70,"0") -> 0
A39: 1 | B39: =VLOOKUP(A39,A33:C38,2) -> -25 | C39: =VLOOKUP(A39,A33:C38,3) -> -25°C | D39: =IF(A39>=4,"°F", "°C") -> °C | F39: =SUM(F33:F38) -> -25 | G39: 0 | H39: 0 | I39: 0 | J39: 0 | K39: 0 | L39: =SUM(F39:K39) -> -25
H43: °C | I43: rH [%]
A44: Umgebungstemperatur | C44: Einheit | H44: 1.5 | I44: 90
A45: 1 | C45: °C | H45: 20 | I45: 90
A46: 2 | C46: °F | H46: 25 | I46: 70
A47: 1 | B47: =Input!B27 -> 25 | C47: =VLOOKUP(A47,A45:C46,3) -> °C | D47: =IF(A47=1,Input!B27,((Input!B27-32)*5/9)) -> 25 | E47: °C | F47: =IF(A47=1,ROUNDUP(Input!B27*2,-1)/2,(ROUNDUP(((Input!B27-32)*5/9)*2,-1)/2)) -> 25 | G47: °C | H47: 30 | I47: 50
H48: 35 | I48: 37
H49: 40 | I49: 25
I50: =VLOOKUP(F47,H44:I49,2) -> 70
A51: Austrittstemperatur
A53: =A14 -> 1 | B53: =IF('Be-Um-rechnung'!A14=1,'Be-Um-rechnung'!C5+Stoffdaten!AC2,1.8*('Be-Um-rechnung'!C5+Stoffdaten!AC2)+32) -> 48.02406646 | C53: =C14 -> °C
